bitfinex/quotes_SOLUSD_20230101
["timestamp","ask_amount","ask_price","bid_price","bid_amount"]
[1672550995014,76.62,9.8003,9.7931,23.363]
[1672550995217,40.0,9.8002,9.7931,23.363]
[1672550995430,40.0,9.8,9.7931,23.363]
[1672550995655,76.62,9.7999,9.7931,23.363]
[1672550995869,40.0,9.7998,9.7931,23.363]
[1672550996082,40.0,9.7996,9.7931,23.363]
[1672550996295,40.0,9.7994,9.7931,23.363]
[1672550996618,40.0,9.7992,9.7931,23.363]
[1672550996930,76.62,9.7991,9.7931,23.363]
[1672550997117,40.0,9.7992,9.7931,23.363]
[1672550997456,76.62,9.7991,9.7931,23.363]
[1672550998068,76.62,9.7993,9.7931,23.363]
[1672550999133,40.0,9.7992,9.7931,23.363]
[1672550999333,76.62,9.7991,9.7931,23.363]
[1672550999543,40.0,9.799,9.7931,23.363]
[1672550999772,40.0,9.7988,9.7931,23.363]
[1672550999991,40.0,9.7986,9.7931,23.363]
[1672551000299,76.63,9.7985,9.7931,23.363]
[1672551000495,40.0,9.7984,9.7931,23.363]
[1672551000914,76.63,9.7987,9.7931,23.363]
[1672551001130,76.63,9.7989,9.7931,23.363]
[1672551001340,40.0,9.7988,9.7931,23.363]
[1672551001539,76.63,9.7987,9.7931,23.363]
[1672551001752,40.0,9.7986,9.7931,23.363]
[1672551002083,76.63,9.7985,9.7931,23.363]
[1672551002275,76.62,9.7991,9.7931,23.363]
[1672551002486,40.0,9.7996,9.7931,23.363]
[1672551002697,40.0,9.7994,9.7931,23.363]
[1672551002913,76.62,9.7993,9.7931,23.363]
[1672551003128,40.0,9.7992,9.7931,23.363]
[1672551003332,76.62,9.7991,9.7931,23.363]
[1672551003761,40.0,9.799,9.7931,23.363]
[1672551003956,76.63,9.7989,9.7931,23.363]
[1672551004171,76.62,9.7991,9.7931,23.363]
[1672551004691,40.0,9.7996,9.7931,23.363]
[1672551004901,76.62,9.7995,9.7931,23.363]
[1672551005112,40.0,9.7994,9.7931,23.363]
[1672551005323,76.62,9.7993,9.7931,23.363]
[1672551005548,76.62,9.7995,9.7931,23.363]
[1672551005762,76.62,9.7997,9.7931,23.363]
[1672551006075,40.0,9.7998,9.7931,23.363]
[1672551006285,40.0,9.7996,9.7931,23.363]
[1672551006599,76.62,9.7995,9.7931,23.363]
[1672551007440,40.0,9.8004,9.7931,23.363]
[1672551007642,76.62,9.8003,9.7931,23.363]
[1672551007857,76.61,9.8005,9.7931,23.363]
[1672551008064,40.0,9.8004,9.7931,23.363]
[1672551008264,76.62,9.8003,9.7931,23.363]
[1672551009003,76.61,9.8007,9.7931,23.363]
[1672551009316,40.0,9.8006,9.7931,23.363]
[1672551009522,40.0,9.8004,9.7931,23.363]
[1672551009727,76.62,9.8003,9.7931,23.363]
[1672551009943,40.0,9.8002,9.7931,23.363]
[1672551010172,40.0,9.8,9.7931,23.363]
[1672551010365,76.62,9.7999,9.7931,23.363]
[1672551010572,40.0,9.7998,9.7931,23.363]
[1672551010792,76.62,9.7997,9.7931,23.363]
[1672551010998,76.62,9.8001,9.7931,23.363]
[1672551011209,40.0,9.8,9.7931,23.363]
[1672551011416,76.62,9.7999,9.7931,23.363]
[1672551011947,76.62,9.8001,9.7931,23.363]
[1672551012356,40.0,9.8006,9.7931,23.363]
[1672551012570,76.61,9.8005,9.7931,23.363]
[1672551012794,40.0,9.8004,9.7931,23.363]
[1672551013006,76.61,9.8003,9.7931,23.363]
[1672551013432,40.0,9.8006,9.7931,23.363]
[1672551013648,40.0,9.8004,9.7931,23.363]
[1672551013842,76.61,9.8003,9.7931,23.363]
[1672551014059,40.0,9.8002,9.7931,23.363]
[1672551014267,40.0,9.8,9.7931,23.363]
[1672551014468,76.62,9.7999,9.7931,23.363]
[1672551014673,40.0,9.7998,9.7931,23.363]
[1672551015005,40.0,9.7996,9.7931,23.363]
[1672551015217,76.62,9.7995,9.7931,23.363]
[1672551015413,40.0,9.7994,9.7931,23.363]
[1672551015626,76.62,9.7993,9.7931,23.363]
[1672551015829,40.0,9.7996,9.7931,23.363]
[1672551016037,76.62,9.7995,9.7931,23.363]
[1672551016771,40.0,9.7996,9.7931,23.363]
[1672551016983,40.0,9.7994,9.7931,23.363]
[1672551017203,76.62,9.7993,9.7931,23.363]
[1672551017419,40.0,9.7994,9.7931,23.363]
[1672551017628,40.0,9.7992,9.7931,23.363]
[1672551017832,76.62,9.7991,9.7931,23.363]
[1672551018042,40.0,9.799,9.7931,23.363]
[1672551018682,76.62,9.7991,9.7931,23.363]
[1672551018890,40.0,9.7992,9.7931,23.363]
[1672551019214,40.0,9.799,9.7931,23.363]
[1672551020556,76.62,9.7991,9.7931,23.363]
[1672551020771,76.62,9.7993,9.7931,23.363]
[1672551021196,76.62,9.7995,9.7931,23.363]
[1672551021741,40.0,9.8004,9.7931,23.363]
[1672551021955,76.61,9.8003,9.7931,23.363]
[1672551022170,40.0,9.8006,9.7931,23.363]
[1672551022478,40.0,9.8004,9.7931,23.363]
[1672551022666,40.0,9.8002,9.7931,23.363]
[1672551022877,76.62,9.8001,9.7931,23.363]
[1672551023819,40.0,9.8,9.7931,23.363]
[1672551024052,40.0,9.7998,9.7931,23.363]
[1672551024266,76.62,9.7997,9.7931,23.363]
[1672551024459,40.0,9.7996,9.7931,23.363]
[1672551024672,40.0,9.7994,9.7931,23.363]
[1672551024880,76.62,9.7993,9.7931,23.363]
[1672551025318,76.62,9.7995,9.7931,23.363]
[1672551026050,40.0,9.7998,9.7931,23.363]
[1672551026264,40.0,9.7996,9.7931,23.363]
[1672551026467,40.0,9.7994,9.7931,23.363]
[1672551026665,40.0,9.7992,9.7931,23.363]
[1672551027624,76.62,9.7993,9.7931,23.363]
[1672551027938,40.0,9.7996,9.7931,23.363]
[1672551028155,76.62,9.7995,9.7931,23.363]
[1672551029934,76.61,9.8005,9.7931,23.363]
[1672551031282,76.61,9.8007,9.7931,23.363]
[1672551031711,40.0,9.8006,9.7931,23.363]
[1672551031929,76.61,9.8005,9.7931,23.363]
[1672551032258,40.0,9.8006,9.7931,23.363]
[1672551032456,76.61,9.8005,9.7931,23.363]
[1672551032778,40.0,9.8004,9.7931,23.363]
[1672551033086,76.61,9.8003,9.7931,23.363]
[1672551033296,76.61,9.8005,9.7931,23.363]
[1672551033508,76.6,9.8017,9.7931,23.363]
[1672551033926,76.61,9.8007,9.7931,23.363]
[1672551034886,76.61,9.8007,9.7935,40.0]
[1672551035284,76.61,9.8007,9.7931,23.363]
[1672551035499,40.0,9.8006,9.7931,23.363]
[1672551035722,76.61,9.8005,9.7931,23.363]
[1672551035932,76.61,9.8007,9.7931,23.363]
[1672551038039,76.61,9.8007,9.7935,345.8]
[1672551038231,76.6,9.8017,9.7935,345.8]
[1672551038441,76.6,9.8017,9.7935,305.8]
[1672551038876,76.6,9.8017,9.7936,40.0]
[1672551039093,76.61,9.8007,9.7936,40.0]
[1672551041617,76.61,9.8007,9.7935,305.8]
[1672551042227,76.61,9.8007,9.7936,40.0]
[1672551042443,76.61,9.8007,9.7935,305.8]
[1672551045820,76.61,9.8007,9.7936,40.0]
[1672551046023,40.0,9.8006,9.7935,305.8]
[1672551046228,76.61,9.8005,9.7935,305.8]
[1672551046450,76.61,9.8007,9.7935,305.8]
[1672551053504,40.0,9.8006,9.7935,305.8]
[1672551053698,40.0,9.8004,9.7935,305.8]
[1672551053902,40.0,9.8002,9.7935,305.8]
[1672551054124,76.62,9.8001,9.7935,305.8]
[1672551054335,76.61,9.8003,9.7935,305.8]
[1672551055183,40.0,9.8004,9.7935,305.8]
[1672551055391,76.61,9.8003,9.7935,305.8]
[1672551055603,76.61,9.8005,9.7935,305.8]
[1672551055918,76.61,9.8007,9.7935,305.8]
[1672551060322,76.61,9.8007,9.7936,40.0]
[1672551062538,76.61,9.8007,9.7935,305.8]
[1672551068938,76.61,9.8007,9.7937,305.8]
[1672551069146,74.73800823,9.802,9.7938,17.0]
[1672551069367,74.73800823,9.802,9.7939,40.0]
[1672551069576,74.73800823,9.802,9.794,17.0]
[1672551069790,76.6,9.8019,9.794,17.0]
[1672551070528,76.6,9.8017,9.794,17.0]
[1672551070930,76.6,9.8017,9.7938,40.0]
[1672551071146,76.61,9.8007,9.7935,305.8]
[1672551071359,76.61,9.8007,9.79,46.744]
[1672551071572,76.61,9.8007,9.7903,345.8]
[1672551073689,76.61,9.8007,9.7935,305.8]
[1672551074212,76.61,9.8007,9.7936,40.0]
[1672551074431,76.61,9.8007,9.7935,305.8]
[1672551075264,40.0,9.8006,9.7935,305.8]
[1672551075580,76.61,9.8005,9.7935,305.8]
[1672551075775,40.0,9.8004,9.7935,305.8]
[1672551075985,40.0,9.8002,9.7935,305.8]
[1672551076207,76.62,9.8001,9.7905,40.0]
[1672551076401,40.0,9.8,9.7905,40.0]
[1672551076615,76.62,9.7999,9.7905,40.0]
[1672551076818,76.62,9.8001,9.7905,40.0]
[1672551077031,40.0,9.8006,9.7905,40.0]
[1672551077032,40.0,9.8004,9.7905,40.0]
[1672551077241,40.0,9.8002,9.7905,40.0]
[1672551077456,76.62,9.8001,9.7905,40.0]
[1672551077669,76.62,9.8001,9.7935,305.8]
[1672551078821,76.61,9.8003,9.7935,305.8]
[1672551079131,40.0,9.8002,9.7935,305.8]
[1672551079341,40.0,9.8,9.7935,305.8]
[1672551079552,76.62,9.7999,9.7935,305.8]
[1672551079779,76.62,9.8001,9.7935,305.8]
[1672551079982,76.61,9.8003,9.7935,305.8]
[1672551080310,40.0,9.8006,9.7935,305.8]
[1672551080624,76.61,9.8005,9.7935,305.8]
[1672551081029,76.61,9.8007,9.7935,305.8]
[1672551081776,40.0,9.8006,9.7935,305.8]
[1672551081985,76.61,9.8005,9.7935,305.8]
[1672551082183,40.0,9.8004,9.7935,305.8]
[1672551082407,261.60037798,9.8249,9.7935,305.8]
[1672551082408,76.61,9.8003,9.7935,305.8]
[1672551082613,40.0,9.8016,9.7935,305.8]
[1672551082814,76.6,9.8015,9.7936,22.803]
[1672551083561,40.0,9.8014,9.7936,22.803]
[1672551083786,76.61,9.8013,9.7936,22.803]
[1672551083977,40.0,9.8012,9.7936,22.803]
[1672551084187,76.61,9.8011,9.7936,22.803]
[1672551084397,40.0,9.801,9.7936,22.803]
[1672551084613,76.61,9.8009,9.7936,22.803]
[1672551084818,40.0,9.8008,9.7936,22.803]
[1672551085025,76.61,9.8007,9.7936,22.803]
[1672551085229,40.0,9.8006,9.7936,22.803]
[1672551085445,40.0,9.8004,9.7936,22.803]
[1672551085654,40.0,9.8002,9.7936,22.803]
[1672551085865,40.0,9.8,9.7936,22.803]
[1672551086096,76.62,9.7999,9.7936,22.803]
[1672551086292,40.0,9.7998,9.7936,22.803]
[1672551086508,76.62,9.7997,9.7936,22.803]
[1672551086714,40.0,9.7996,9.7936,22.803]
[1672551086925,40.0,9.7994,9.7936,22.803]
[1672551087139,76.62,9.7993,9.7936,22.803]
[1672551087461,40.0,9.7992,9.7936,22.803]
[1672551087650,40.0,9.799,9.7936,22.803]
[1672551087865,76.62,9.7989,9.7936,22.803]
[1672551088183,40.0,9.7988,9.7936,22.803]
[1672551088389,40.0,9.7986,9.7936,22.803]
[1672551088600,76.63,9.7985,9.7936,22.803]
[1672551088824,40.0,9.7984,9.7936,22.803]
[1672551089032,76.63,9.7983,9.7936,22.803]
[1672551089341,40.0,9.7988,9.7936,22.803]
[1672551089558,40.0,9.7986,9.7936,22.803]
[1672551089877,40.0,9.7984,9.7936,22.803]
[1672551090090,76.63,9.7983,9.7936,22.803]
[1672551090283,40.0,9.7982,9.7936,22.803]
[1672551090495,76.63,9.7981,9.7936,22.803]
[1672551090705,40.0,9.798,9.7936,22.803]
[1672551090925,40.0,9.7978,9.7936,22.803]
[1672551091138,40.0,9.7976,9.7936,22.803]
[1672551091345,76.64,9.7975,9.7936,22.803]
[1672551091558,40.0,9.7974,9.7936,22.803]
[1672551091873,40.0,9.7972,9.7936,22.803]
[1672551092081,76.64,9.7971,9.7902,23.2311]
[1672551092291,40.0,9.8017,9.7902,23.2311]
[1672551092508,40.0,9.8017,9.7904,40.0]
[1672551093033,40.0,9.8002,9.7905,139.7428]
[1672551093339,40.0,9.8,9.7905,139.7428]
[1672551093555,76.62,9.7999,9.7906,139.7428]
[1672551093761,40.0,9.7998,9.7906,139.7428]
[1672551093970,40.0,9.7996,9.7906,139.7428]
[1672551094185,40.0,9.7996,9.7904,40.0]
[1672551094186,76.62,9.7995,9.7907,139.7428]
[1672551094494,40.0,9.7994,9.7907,139.7428]
[1672551094690,76.62,9.7993,9.7909,305.8]
[1672551094903,76.62,9.7999,9.791,40.0]
[1672551095111,40.0,9.8006,9.7911,305.8]
[1672551095344,40.0,9.8004,9.7912,40.0]
[1672551095547,76.61,9.8003,9.7912,40.0]
[1672551095743,40.0,9.8004,9.7924,15.80730786]
[1672551096498,40.0,9.8004,9.7925,23.2403]
[1672551096697,76.61,9.8003,9.7925,23.2403]
[1672551096911,76.61,9.8003,9.7926,23.2403]
[1672551097233,40.0,9.8006,9.7926,23.2403]
[1672551097423,76.61,9.8005,9.7927,23.2403]
[1672551097634,40.0,9.8004,9.7927,23.2403]
[1672551097840,76.61,9.8003,9.7927,23.2403]
[1672551098893,76.61,9.8005,9.7927,23.2403]
[1672551099209,39.5,9.8015,9.7931,23.2033]
[1672551099420,40.0,9.8013,9.7931,23.2033]
[1672551099631,76.61,9.8012,9.7932,23.2033]
[1672551099854,40.0,9.8011,9.7932,23.2033]
[1672551100063,76.61,9.801,9.7932,23.2033]
[1672551100592,76.61,9.8012,9.7932,23.2033]
[1672551100790,40.0,9.8011,9.7933,23.2033]
[1672551100999,40.0,9.8009,9.7933,23.2033]
[1672551101331,40.0,9.8007,9.7933,23.2033]
[1672551101542,76.61,9.8006,9.7933,23.2033]
[1672551101746,40.0,9.8005,9.7933,23.2033]
[1672551101960,40.0,9.8003,9.7933,23.2033]
[1672551102172,76.61,9.8002,9.7933,23.2033]
[1672551103204,40.0,9.8005,9.7933,23.2033]
[1672551103420,76.61,9.8004,9.7933,23.2033]
[1672551103631,40.0,9.8003,9.7933,23.2033]
[1672551103850,40.0,9.8001,9.7933,23.2033]
[1672551104064,76.62,9.8,9.7933,23.2033]
[1672551104261,76.61,9.8004,9.7933,23.2033]
[1672551104924,40.0,9.8003,9.7933,23.2033]
[1672551105227,76.62,9.8002,9.7934,23.6344]
[1672551105743,40.0,9.8001,9.7934,23.6344]
[1672551105962,76.62,9.8,9.7934,23.6344]
[1672551106679,40.0,9.7999,9.7934,23.6344]
[1672551106891,76.62,9.7998,9.7934,23.6344]
[1672551107100,76.6,9.8016,9.7934,23.6344]
[1672551107307,76.6,9.8016,9.7935,23.6344]
[1672551107520,76.6,9.8017,9.7935,23.6344]
[1672551107741,40.0,9.8016,9.7935,23.6344]
[1672551107946,76.61,9.8015,9.7936,23.6344]
[1672551108148,23.1577,9.8018,9.7936,23.6344]
[1672551108149,40.0,9.8016,9.7936,23.6344]
[1672551108364,76.61,9.8015,9.7936,23.6344]
[1672551108574,23.1577,9.8018,9.7936,23.6344]
[1672551108575,76.6,9.8017,9.7936,23.6344]
[1672551109212,76.6,9.8017,9.7937,23.8254]
[1672551109746,40.0,9.8016,9.7937,23.8254]
[1672551109951,76.61,9.8015,9.7937,23.8254]
[1672551110154,40.0,9.8014,9.7937,23.8254]
[1672551110351,40.0,9.8012,9.7937,23.8254]
[1672551110567,76.61,9.8011,9.7937,23.8254]
[1672551111102,40.0,9.801,9.7937,23.8254]
[1672551111328,40.0,9.8008,9.7937,23.8254]
[1672551111523,76.61,9.8007,9.7937,23.8254]
[1672551111734,76.61,9.8009,9.7937,23.8254]
[1672551111943,40.0,9.8008,9.7937,23.8254]
[1672551112154,40.0,9.8006,9.7937,23.8254]
[1672551112363,76.61,9.8005,9.7937,23.8254]
[1672551112571,40.0,9.8004,9.7937,23.8254]
[1672551112778,76.61,9.8003,9.7937,23.8254]
[1672551113413,40.0,9.8004,9.7937,23.8254]
[1672551113623,40.0,9.8002,9.7937,23.8254]
[1672551113835,76.62,9.8001,9.7937,23.8254]
[1672551114052,40.0,9.8,9.7937,23.8254]
[1672551114365,40.0,9.7998,9.7937,23.8254]
[1672551114575,40.0,9.7996,9.7937,23.8254]
[1672551114783,76.62,9.7995,9.7937,23.8254]
[1672551116136,76.62,9.7997,9.7937,23.8254]
[1672551116350,76.62,9.8001,9.7937,23.8254]
[1672551116558,40.0,9.8,9.7937,23.8254]
[1672551116778,76.62,9.7999,9.7937,23.8254]
[1672551117108,40.0,9.7998,9.7937,23.8254]
[1672551117416,76.62,9.7997,9.7937,23.8254]
[1672551117615,40.0,9.8004,9.7937,23.8254]
[1672551117824,76.61,9.8003,9.7937,23.8254]
[1672551118039,40.0,9.8002,9.7937,23.8254]
[1672551118237,40.0,9.8,9.7937,23.8254]
[1672551118445,76.62,9.7999,9.7937,23.8254]
[1672551118886,76.61,9.8007,9.7937,23.8254]
[1672551119498,40.0,9.8014,9.7937,23.8254]
[1672551119721,40.0,9.8012,9.7937,23.8254]
[1672551119953,76.61,9.8011,9.7937,23.8254]
[1672551120466,40.0,9.801,9.7937,23.8254]
[1672551120657,76.61,9.8009,9.7937,23.8254]
[1672551120869,40.0,9.8008,9.7937,23.8254]
[1672551121075,76.61,9.8007,9.7937,23.8254]
[1672551121291,76.61,9.8011,9.7937,23.8254]
[1672551121500,76.61,9.8013,9.7937,23.8254]
[1672551122026,76.6,9.8017,9.7937,23.8254]
[1672551122239,40.0,9.8016,9.7937,23.8254]
[1672551122451,40.0,9.8014,9.7937,23.8254]
[1672551122774,40.0,9.8012,9.7937,23.8254]
[1672551122977,40.0,9.801,9.7937,23.8254]
[1672551123308,40.0,9.8008,9.7937,23.8254]
[1672551123504,76.61,9.8007,9.7937,23.8254]
[1672551123732,40.0,9.8006,9.7937,23.8254]
[1672551123948,40.0,9.8004,9.7937,23.8254]
[1672551124159,40.0,9.8002,9.7937,23.8254]
[1672551124368,40.0,9.8,9.7937,23.8254]
[1672551124579,76.62,9.7999,9.7937,23.8254]
[1672551124791,40.0,9.7998,9.7937,23.8254]
[1672551124995,76.62,9.7997,9.7937,23.8254]
[1672551125331,76.61,9.8007,9.7937,23.8254]
[1672551125513,40.0,9.8014,9.7937,23.8254]
[1672551125726,76.61,9.8013,9.7937,23.8254]
[1672551126162,76.61,9.8015,9.7937,23.8254]
[1672551126375,40.0,9.8014,9.7937,23.8254]
[1672551126563,76.61,9.8013,9.7937,23.8254]
[1672551127514,76.61,9.8015,9.7937,23.8254]
[1672551128801,76.6,9.8019,9.7937,23.8254]
[1672551129109,40.0,9.8018,9.7937,23.8254]
[1672551129302,40.0,9.8018,9.793,140.041]
[1672551129303,40.0,9.8016,9.7938,24.8937]
[1672551129506,76.61,9.8015,9.7938,24.8937]
[1672551129717,40.0,9.8014,9.7938,24.8937]
[1672551129943,76.61,9.8013,9.7938,24.8937]
[1672551130344,40.0,9.8016,9.7938,24.8937]
[1672551130574,40.0,9.8014,9.7938,24.8937]
[1672551130787,76.61,9.8013,9.7938,24.8937]
[1672551130996,40.0,9.8012,9.7938,24.8937]
[1672551131215,40.0,9.801,9.7938,24.8937]
[1672551131406,40.0,9.8008,9.7938,24.8937]
[1672551131631,76.61,9.8007,9.7938,24.8937]
[1672551131841,40.0,9.8006,9.7938,24.8937]
[1672551132054,40.0,9.8004,9.7938,24.8937]
[1672551132245,40.0,9.8002,9.7938,24.8937]
[1672551132456,76.62,9.8001,9.7938,24.8937]
[1672551132676,40.0,9.8,9.7938,24.8937]
[1672551132885,40.0,9.7998,9.7938,24.8937]
[1672551133098,40.0,9.7996,9.7938,24.8937]
[1672551133295,76.62,9.7995,9.7938,24.8937]
[1672551133514,40.0,9.7994,9.7938,24.8937]
[1672551133734,40.0,9.7992,9.7938,24.8937]
[1672551133956,40.0,9.799,9.7938,24.8937]
[1672551134156,40.0,9.7988,9.7938,24.8937]
[1672551134370,76.63,9.7987,9.7938,24.8937]
[1672551134567,40.0,9.7986,9.7938,24.8937]
[1672551134779,40.0,9.7984,9.7938,24.8937]
[1672551134983,40.0,9.7982,9.7938,24.8937]
[1672551135190,40.0,9.7982,9.7838,40.0]
[1672551135191,74.73800823,9.7944,9.7827,7.084]
[1672551135400,74.73800823,9.7944,9.7807,40.0]
[1672551135401,211.39800823,9.7943,9.7863,117.5158]
[1672551135637,233.95860823,9.7943,9.784,24.8095]
[1672551135843,40.0,9.7941,9.7841,24.8095]
[1672551136033,40.0,9.7939,9.7842,166.5273]
[1672551136245,96.67,9.7938,9.7843,141.7178]
[1672551136567,40.0,9.7937,9.7843,141.7178]
[1672551136890,40.0,9.7935,9.7844,142.4449]
[1672551137101,40.0,9.7933,9.7844,142.4449]
[1672551137311,40.0,9.7931,9.7845,24.9291]
[1672551137527,76.67,9.793,9.7845,24.9291]
[1672551137842,40.0,9.7929,9.7845,24.9291]
[1672551138055,40.0,9.7927,9.7846,24.9291]
[1672551138264,40.0,9.7925,9.7846,24.9291]
[1672551138472,76.68,9.7924,9.7846,24.9291]
[1672551138668,40.0,9.7923,9.7846,24.9291]
[1672551138880,40.0,9.7921,9.7846,24.9291]
[1672551139093,76.68,9.792,9.7846,24.9291]
[1672551139518,40.0,9.7919,9.7846,24.9291]
[1672551139720,76.68,9.7918,9.7846,24.9291]
[1672551139942,40.0,9.7917,9.7846,24.9291]
[1672551140137,76.68,9.7916,9.7846,24.9291]
[1672551140353,40.0,9.7915,9.7846,24.9291]
[1672551140558,40.0,9.7913,9.7846,24.9291]
[1672551140768,76.69,9.7912,9.7846,24.9291]
[1672551141193,76.68,9.7914,9.7846,24.9291]
[1672551141834,40.0,9.7913,9.7846,24.9291]
[1672551142043,40.0,9.7919,9.7846,24.9291]
[1672551142044,76.69,9.7912,9.7846,24.9291]
[1672551142250,76.68,9.7918,9.7846,24.9291]
[1672551143501,40.0,9.7917,9.7846,24.9291]
[1672551143720,76.68,9.7916,9.7846,24.9291]
[1672551144154,76.68,9.792,9.7846,24.9291]
[1672551144371,40.0,9.7919,9.7846,24.9291]
[1672551144569,40.0,9.7917,9.7846,24.9291]
[1672551144786,76.68,9.7916,9.7846,24.9291]
[1672551144975,40.0,9.7919,9.7846,24.9291]
[1672551145184,76.68,9.7918,9.7846,24.9291]
[1672551145404,40.0,9.7917,9.7846,24.9291]
[1672551145617,76.68,9.7916,9.7846,24.9291]
[1672551145833,40.0,9.7915,9.7846,24.9291]
[1672551146029,76.68,9.7914,9.7846,24.9291]
[1672551146236,40.0,9.7913,9.7846,24.9291]
[1672551146453,40.0,9.7911,9.7846,24.9291]
[1672551146662,76.69,9.791,9.7846,24.9291]
[1672551146887,40.0,9.7909,9.7846,24.9291]
[1672551147093,40.0,9.7907,9.7846,24.9291]
[1672551147302,76.69,9.7906,9.7846,24.9291]
[1672551147835,40.0,9.7905,9.7846,24.9291]
[1672551148027,40.0,9.7903,9.7846,24.9291]
[1672551148242,76.69,9.7902,9.7846,24.9291]
[1672551149186,40.0,9.7901,9.7846,24.9291]
[1672551149394,76.69,9.79,9.7846,24.9291]
[1672551150864,40.0,9.7899,9.7846,24.9291]
[1672551151074,76.7,9.7898,9.7846,24.9291]
[1672551151283,40.0,9.7897,9.7846,24.9291]
[1672551151494,40.0,9.7895,9.7846,24.9291]
[1672551151708,76.7,9.7894,9.7846,24.9291]
[1672551151917,76.7,9.7896,9.7846,24.9291]
[1672551152334,76.69,9.7904,9.7846,24.9291]
[1672551152754,40.0,9.7905,9.7846,24.9291]
[1672551152965,76.69,9.7904,9.7846,24.9291]
[1672551153392,76.68,9.7916,9.7846,24.9291]
[1672551153737,40.0,9.7917,9.7846,24.9291]
[1672551154021,202.14593527,9.8021,9.7846,24.9291]
[1672551154022,76.68,9.7916,9.7846,24.9291]
[1672551154241,40.0,9.7919,9.7846,24.9291]
[1672551154439,76.68,9.7918,9.7846,24.9291]
[1672551154763,40.0,9.7917,9.7846,24.9291]
[1672551154978,76.68,9.7916,9.7846,24.9291]
[1672551155167,40.0,9.7915,9.7846,24.9291]
[1672551155379,76.68,9.7914,9.7846,24.9291]
[1672551156014,40.0,9.7913,9.7846,24.9291]
[1672551156227,76.69,9.7912,9.7846,24.9291]
[1672551156436,40.0,9.7911,9.7846,24.9291]
[1672551156766,40.0,9.7909,9.7846,24.9291]
[1672551156975,76.69,9.7908,9.7846,24.9291]
[1672551157379,76.68,9.7922,9.7846,24.9291]
[1672551157704,76.67,9.793,9.7846,24.9291]
[1672551157907,40.0,9.7935,9.7847,24.786]
[1672551158118,76.67,9.7934,9.7847,24.786]
[1672551158329,40.0,9.7933,9.7847,24.786]
[1672551158536,40.0,9.7931,9.7848,24.786]
[1672551158757,40.0,9.7929,9.7848,24.786]
[1672551158964,40.0,9.7927,9.7848,24.786]
[1672551159173,76.67,9.7926,9.7849,24.786]
[1672551159392,40.0,9.7925,9.7849,24.786]
[1672551159611,40.0,9.7923,9.7849,24.786]
[1672551159798,40.0,9.7921,9.7849,24.786]
[1672551160008,76.68,9.792,9.7849,24.786]
[1672551160219,40.0,9.7921,9.7849,24.786]
[1672551160429,40.0,9.7919,9.7849,24.786]
[1672551160635,76.68,9.7918,9.7849,24.786]
[1672551162039,40.0,9.7917,9.7849,24.786]
[1672551162224,76.68,9.7916,9.7849,24.786]
[1672551162639,76.67,9.7926,9.7849,24.786]
[1672551163072,76.67,9.7928,9.7849,24.786]
[1672551163280,40.0,9.7929,9.7849,24.786]
[1672551163483,40.0,9.7927,9.785,23.3777]
[1672551163803,40.0,9.7925,9.785,23.3777]
[1672551164015,76.68,9.7924,9.785,23.3777]
[1672551164432,40.0,9.7923,9.785,23.3777]
[1672551164634,40.0,9.7921,9.785,23.3777]
[1672551164851,76.68,9.792,9.785,23.3777]
[1672551165282,76.68,9.7922,9.785,23.3777]
[1672551165513,40.0,9.7925,9.785,23.3777]
[1672551165699,40.0,9.7923,9.785,23.3777]
[1672551166027,76.68,9.7922,9.785,23.3777]
[1672551166214,76.67,9.7926,9.785,23.3777]
[1672551166647,40.0,9.7929,9.785,23.3777]
[1672551166855,40.0,9.7927,9.785,23.3777]
[1672551167069,40.0,9.7925,9.785,23.3777]
[1672551167280,76.68,9.7924,9.785,23.3777]
[1672551167493,40.0,9.7923,9.785,23.3777]